[Event "Early-Titled-Tuesday-Blitz-November-28-2023"]
[Site "Chess.com"]
[Date "2023.11.28"]
[Round "10"]
[White "Boundless_Strike"]
[Black "Sychev_on_YouTube"]
[Result "1-0"]
[WhiteElo "2676"]
[BlackElo "2878"]
[TimeControl "180+1"]
[EndTime "10:02:26 PST"]
[Termination "Boundless_Strike won on time"]

1. d4 {[%clk 0:02:53.7]} 1... Nf6 {[%clk 0:02:59.5]} 2. f3 {[%clk 0:02:54.2]}
2... d5 {[%clk 0:02:58.9]} 3. e4 {[%clk 0:02:54.6]} 3... dxe4 {[%clk 0:02:58.7]}
4. Nc3 {[%clk 0:02:55.1]} 4... exf3 {[%clk 0:02:56.6]} 5. Nxf3 {[%clk
0:02:55.2]} 5... g6 {[%clk 0:02:56.9]} 6. Bc4 {[%clk 0:02:51.9]} 6... Bg7 {[%clk
0:02:57.2]} 7. h4 {[%clk 0:02:52.7]} 7... O-O {[%clk 0:02:55.2]} 8. h5 {[%clk
0:02:52.9]} 8... Nxh5 {[%clk 0:02:41.5]} 9. Rxh5 {[%clk 0:02:52.6]} 9... gxh5
{[%clk 0:02:41.2]} 10. Qd3 {[%clk 0:02:53.3]} 10... Qd6 {[%clk 0:02:25.6]} 11.
Ne4 {[%clk 0:02:30.2]} 11... Qg6 {[%clk 0:02:17.9]} 12. Nh4 {[%clk 0:02:29.7]}
12... Qg4 {[%clk 0:01:51]} 13. Ng5 {[%clk 0:01:59.4]} 13... Qxh4+ {[%clk
0:01:36.5]} 14. g3 {[%clk 0:01:59.7]} 14... Qh1+ {[%clk 0:01:07.1]} 15. Kd2
{[%clk 0:01:59.6]} 15... Rd8 {[%clk 0:00:53.7]} 16. Nxf7 {[%clk 0:01:40.1]}
16... Qg2+ {[%clk 0:00:42.9]} 17. Kc3 {[%clk 0:01:40]} 17... Rxd4 {[%clk
0:00:31.3]} 18. Ne5+ {[%clk 0:01:39.8]} 18... Rxc4+ {[%clk 0:00:26.9]} 19. Qxc4+
{[%clk 0:01:36.1]} 19... e6 {[%clk 0:00:25.7]} 20. Bf4 {[%clk 0:00:56.7]} 20...
Qc6 {[%clk 0:00:18.9]} 21. Rd1 {[%clk 0:00:50.8]} 21... Bxe5+ {[%clk 0:00:16.2]}
22. Bxe5 {[%clk 0:00:50.9]} 22... Qxc4+ {[%clk 0:00:16.2]} 23. Kxc4 {[%clk
0:00:51.8]} 23... Nd7 {[%clk 0:00:14.9]} 24. Bxc7 {[%clk 0:00:48.6]} 24... b6
{[%clk 0:00:14.9]} 25. Kc3 {[%clk 0:00:40.6]} 25... Nf6 {[%clk 0:00:12.6]} 26.
Be5 {[%clk 0:00:33.8]} 26... Nd5+ {[%clk 0:00:12]} 27. Kb3 {[%clk 0:00:34.3]}
27... Ba6 {[%clk 0:00:11.6]} 28. Rd4 {[%clk 0:00:30.9]} 28... Rf8 {[%clk
0:00:10.5]} 29. c4 {[%clk 0:00:31.2]} 29... Ne3 {[%clk 0:00:07.7]} 30. Rd7
{[%clk 0:00:31.4]} 30... Nf5 {[%clk 0:00:03.9]} 31. Rxa7 {[%clk 0:00:27.6]}
31... Bc8 {[%clk 0:00:04.3]} 32. Rc7 {[%clk 0:00:23.8]} 32... Rd8 {[%clk
0:00:03.8]} 33. Kb4 {[%clk 0:00:20.6]} 33... Bd7 {[%clk 0:00:03.4]} 34. a4
{[%clk 0:00:20.2]} 34... h6 {[%clk 0:00:02.4]} 35. Bf6 {[%clk 0:00:20.1]} 35...
Rf8 {[%clk 0:00:01.8]} 36. Be5 {[%clk 0:00:20.6]} 36... Be8 {[%clk 0:00:02.2]}
37. Rb7 {[%clk 0:00:20.2]} 37... Ne3 {[%clk 0:00:02.3]} 38. Rxb6 {[%clk
0:00:19.8]} 38... Ng4 {[%clk 0:00:01.9]} 39. Bd6 {[%clk 0:00:17.6]} 39... Rf3
{[%clk 0:00:01.5]} 40. Rb8 {[%clk 0:00:18]} 40... Kf7 {[%clk 0:00:01.9]} 41. a5
{[%clk 0:00:18.6]} 41... Rf2 {[%clk 0:00:01.9]} 42. Kc5 {[%clk 0:00:14.8]} 42...
Rf1 {[%clk 0:00:01.8]} 43. a6 {[%clk 0:00:14.1]} 43... Ra1 {[%clk 0:00:02]} 44.
Kb6 {[%clk 0:00:14.8]} 44... Ne3 {[%clk 0:00:02]} 45. b3 {[%clk 0:00:13.9]}
45... e5 {[%clk 0:00:01.3]} 46. a7 {[%clk 0:00:13.8]} 1-0

[Event "Early-Titled-Tuesday-Blitz-November-28-2023"]
[Site "Chess.com"]
[Date "2023.11.28"]
[Round "10"]
[White "Alexsur1981"]
[Black "mbojan"]
[Result "0-1"]
[WhiteElo "2880"]
[BlackElo "2865"]
[TimeControl "180+1"]
[EndTime "10:02:27 PST"]
[Termination "mbojan won by resignation"]

1. e4 {[%clk 0:03:00.9]} 1... a6 {[%clk 0:03:00.3]} 2. d4 {[%clk 0:03:00.4]}
2... e6 {[%clk 0:03:00.7]} 3. c4 {[%clk 0:03:00.6]} 3... d5 {[%clk 0:03:01]} 4.
Nc3 {[%clk 0:02:59.8]} 4... dxe4 {[%clk 0:03:00.8]} 5. Nxe4 {[%clk 0:02:59.6]}
5... Bb4+ {[%clk 0:03:01.2]} 6. Nc3 {[%clk 0:02:59.5]} 6... c5 {[%clk 0:03:00]}
7. Nf3 {[%clk 0:02:59.4]} 7... Nf6 {[%clk 0:02:55]} 8. a3 {[%clk 0:02:54.4]}
8... Ba5 {[%clk 0:02:40.1]} 9. Be2 {[%clk 0:02:32.1]} 9... cxd4 {[%clk
0:02:39.1]} 10. Nxd4 {[%clk 0:02:31.8]} 10... Bxc3+ {[%clk 0:02:35.5]} 11. bxc3
{[%clk 0:02:32.7]} 11... O-O {[%clk 0:02:35.8]} 12. O-O {[%clk 0:02:30.3]} 12...
e5 {[%clk 0:02:31.2]} 13. Nb3 {[%clk 0:02:26.6]} 13... Nc6 {[%clk 0:02:31.3]}
14. Qxd8 {[%clk 0:02:14.3]} 14... Rxd8 {[%clk 0:02:31.2]} 15. Be3 {[%clk
0:02:14.9]} 15... Ne4 {[%clk 0:02:19.5]} 16. Bb6 {[%clk 0:02:13.9]} 16... Nxc3
{[%clk 0:02:16.7]} 17. Bf3 {[%clk 0:01:50.6]} 17... Re8 {[%clk 0:02:14.8]} 18.
Rfc1 {[%clk 0:01:37.9]} 18... Na4 {[%clk 0:02:09.3]} 19. Bxc6 {[%clk 0:01:29.8]}
19... bxc6 {[%clk 0:02:08.1]} 20. Bc7 {[%clk 0:01:27.5]} 20... f6 {[%clk
0:02:00]} 21. Ra2 {[%clk 0:01:18.1]} 21... Be6 {[%clk 0:01:56.2]} 22. Rd2 {[%clk
0:01:15.9]} 22... Rac8 {[%clk 0:01:55.9]} 23. Bd6 {[%clk 0:01:13.1]} 23... Red8
{[%clk 0:01:46.2]} 24. f4 {[%clk 0:01:12.6]} 24... exf4 {[%clk 0:01:45.9]} 25.
Bxf4 {[%clk 0:01:12.3]} 25... Rxd2 {[%clk 0:01:46.1]} 26. Bxd2 {[%clk
0:01:12.9]} 26... Rd8 {[%clk 0:01:36.9]} 27. Bb4 {[%clk 0:01:12.8]} 27... Rd3
{[%clk 0:01:33.1]} 28. Nc5 {[%clk 0:01:12.4]} 28... Nxc5 {[%clk 0:01:31.2]} 29.
Bxc5 {[%clk 0:01:13.3]} 29... Kf7 {[%clk 0:01:28.1]} 30. Bb4 {[%clk 0:01:10.8]}
30... a5 {[%clk 0:01:20.2]} 31. Bxa5 {[%clk 0:01:08]} 31... Rxa3 {[%clk
0:01:20.5]} 32. Be1 {[%clk 0:01:07.8]} 32... Ra2 {[%clk 0:01:20.2]} 33. Bf2
{[%clk 0:01:06.9]} 33... g5 {[%clk 0:01:19.7]} 34. h4 {[%clk 0:01:05.9]} 34...
h6 {[%clk 0:01:14]} 35. hxg5 {[%clk 0:01:06.1]} 35... hxg5 {[%clk 0:01:14.9]}
36. Rc3 {[%clk 0:01:03.7]} 36... Kg6 {[%clk 0:01:14.3]} 37. Kf1 {[%clk
0:00:59.2]} 37... f5 {[%clk 0:01:12.1]} 38. g3 {[%clk 0:00:58.7]} 38... Kh5
{[%clk 0:01:11.5]} 39. Ke1 {[%clk 0:00:49.9]} 39... Ra4 {[%clk 0:01:07.8]} 40.
c5 {[%clk 0:00:49.9]} 40... Bd5 {[%clk 0:01:06]} 41. Kd2 {[%clk 0:00:44.5]}
41... Kg4 {[%clk 0:01:05.9]} 42. Be1 {[%clk 0:00:44.9]} 42... Ra2+ {[%clk
0:01:03.1]} 43. Rc2 {[%clk 0:00:41.3]} 43... Ra8 {[%clk 0:00:46]} 44. Ke3 {[%clk
0:00:35.7]} 44... Re8+ {[%clk 0:00:44.7]} 45. Kf2 {[%clk 0:00:35.8]} 45... Rh8
{[%clk 0:00:44.9]} 46. Ke3 {[%clk 0:00:34]} 46... Rh1 {[%clk 0:00:43.6]} 47. Bf2
{[%clk 0:00:32.1]} 47... Rb1 {[%clk 0:00:40.7]} 48. Rc3 {[%clk 0:00:30.5]} 48...
Rb2 {[%clk 0:00:38.7]} 49. Be1 {[%clk 0:00:29.9]} 49... Bf3 {[%clk 0:00:36.7]}
50. Kd4 {[%clk 0:00:29.6]} 50... Re2 {[%clk 0:00:33.5]} 51. Re3 {[%clk
0:00:29.2]} 51... Rxe1 {[%clk 0:00:26.2]} 52. Rxe1 {[%clk 0:00:28.6]} 52... Kxg3
{[%clk 0:00:26.9]} 53. Ke5 {[%clk 0:00:25.2]} 53... f4 {[%clk 0:00:24]} 54. Rg1+
{[%clk 0:00:24.8]} 54... Bg2 {[%clk 0:00:23.2]} 55. Kd6 {[%clk 0:00:21.6]} 55...
f3 {[%clk 0:00:20.5]} 0-1

[Event "Early-Titled-Tuesday-Blitz-November-28-2023"]
[Site "Chess.com"]
[Date "2023.11.28"]
[Round "10"]
[White "Abund"]
[Black "Mikhail_Golubev"]
[Result "1-0"]
[WhiteElo "2781"]
[BlackElo "2586"]
[TimeControl "180+1"]
[EndTime "10:02:28 PST"]
[Termination "Abund won by resignation"]

1. e4 {[%clk 0:03:00.9]} 1... c5 {[%clk 0:02:59.7]} 2. Nf3 {[%clk 0:03:01.3]}
2... d6 {[%clk 0:03:00.2]} 3. Bb5+ {[%clk 0:03:01.9]} 3... Bd7 {[%clk
0:02:59.7]} 4. Bxd7+ {[%clk 0:03:02.4]} 4... Qxd7 {[%clk 0:02:59.8]} 5. c4
{[%clk 0:03:03]} 5... g6 {[%clk 0:02:59]} 6. Nc3 {[%clk 0:03:03.4]} 6... Bg7
{[%clk 0:02:59]} 7. d4 {[%clk 0:03:04.1]} 7... cxd4 {[%clk 0:02:58.8]} 8. Nxd4
{[%clk 0:03:05]} 8... Nf6 {[%clk 0:02:55.6]} 9. f3 {[%clk 0:03:05.2]} 9... O-O
{[%clk 0:02:54.6]} 10. Be3 {[%clk 0:03:05.9]} 10... Nc6 {[%clk 0:02:51.8]} 11.
O-O {[%clk 0:03:06]} 11... a6 {[%clk 0:02:51.6]} 12. Qd3 {[%clk 0:03:04.8]}
12... Ne5 {[%clk 0:02:44.9]} 13. Qe2 {[%clk 0:03:04.8]} 13... Rfc8 {[%clk
0:02:39.8]} 14. b3 {[%clk 0:03:04.6]} 14... b5 {[%clk 0:02:37.8]} 15. Nd5 {[%clk
0:03:05.1]} 15... Nxd5 {[%clk 0:02:33.8]} 16. cxd5 {[%clk 0:03:06]} 16... Rc3
{[%clk 0:02:12]} 17. Rad1 {[%clk 0:03:06]} 17... Rac8 {[%clk 0:02:00.1]} 18. Bd2
{[%clk 0:03:05.7]} 18... Rd3 {[%clk 0:01:38.4]} 19. Nc6 {[%clk 0:02:35.1]} 19...
Rxd2 {[%clk 0:00:41]} 20. Qxd2 {[%clk 0:02:24.5]} 20... Nxc6 {[%clk 0:00:41.1]}
21. dxc6 {[%clk 0:02:24.5]} 21... Rxc6 {[%clk 0:00:41.2]} 22. Rc1 {[%clk
0:02:24.1]} 22... h5 {[%clk 0:00:36.1]} 23. Kh1 {[%clk 0:02:16.6]} 23... h4
{[%clk 0:00:31.4]} 24. Qd5 {[%clk 0:02:10.1]} 24... Rxc1 {[%clk 0:00:24.9]} 25.
Rxc1 {[%clk 0:02:11]} 25... Bf6 {[%clk 0:00:24.4]} 26. Qa8+ {[%clk 0:02:04]}
26... Kh7 {[%clk 0:00:24.4]} 27. Qxa6 {[%clk 0:02:02.7]} 27... h3 {[%clk
0:00:24.4]} 28. Qb6 {[%clk 0:01:53.3]} 28... hxg2+ {[%clk 0:00:10.7]} 29. Kxg2
{[%clk 0:01:53.1]} 29... Qe6 {[%clk 0:00:10.3]} 30. Qxb5 {[%clk 0:01:51.4]}
30... Be5 {[%clk 0:00:09.8]} 31. Qe2 {[%clk 0:01:29.7]} 31... Qf6 {[%clk
0:00:10.7]} 32. Rg1 {[%clk 0:01:30.1]} 32... Qf4 {[%clk 0:00:07.6]} 33. Kh1
{[%clk 0:01:28.1]} 33... Kg7 {[%clk 0:00:07.6]} 34. a4 {[%clk 0:01:24.4]} 34...
e6 {[%clk 0:00:07.5]} 35. a5 {[%clk 0:01:24.2]} 35... d5 {[%clk 0:00:07.8]} 36.
a6 {[%clk 0:01:22]} 36... Bb8 {[%clk 0:00:07.4]} 37. Ra1 {[%clk 0:00:53.4]}
37... dxe4 {[%clk 0:00:06.5]} 38. fxe4 {[%clk 0:00:51.2]} 38... Qe5 {[%clk
0:00:06.8]} 39. Rf1 {[%clk 0:00:46.9]} 39... Ba7 {[%clk 0:00:06.2]} 40. Qf3
{[%clk 0:00:44.1]} 40... f6 {[%clk 0:00:06.6]} 41. Rd1 {[%clk 0:00:38.9]} 41...
Qc7 {[%clk 0:00:05.1]} 42. Qd3 {[%clk 0:00:38.1]} 42... Kh6 {[%clk 0:00:04.8]}
43. Qh3+ {[%clk 0:00:31.4]} 43... Kg7 {[%clk 0:00:04.1]} 44. Qxe6 {[%clk
0:00:30.5]} 44... Qf4 {[%clk 0:00:02.6]} 45. Rd7+ {[%clk 0:00:25.1]} 45... Kh6
{[%clk 0:00:02.9]} 46. Qh3+ {[%clk 0:00:21.8]} 46... Kg5 {[%clk 0:00:03.5]} 47.
Qg3+ {[%clk 0:00:21.7]} 47... Qxg3 {[%clk 0:00:02.6]} 48. hxg3 {[%clk
0:00:22.6]} 1-0

[Event "Early-Titled-Tuesday-Blitz-November-28-2023"]
[Site "Chess.com"]
[Date "2023.11.28"]
[Round "10"]
[White "dianamirza"]
[Black "RebecaJimnz"]
[Result "1-0"]
[WhiteElo "2026"]
[BlackElo "2289"]
[TimeControl "180+1"]
[EndTime "10:02:29 PST"]
[Termination "dianamirza won by resignation"]

1. e4 {[%clk 0:02:48.4]} 1... c5 {[%clk 0:02:59.8]} 2. Nf3 {[%clk 0:02:48.1]}
2... Nc6 {[%clk 0:03:00.1]} 3. d4 {[%clk 0:02:48.8]} 3... cxd4 {[%clk 0:03:01]}
4. Nxd4 {[%clk 0:02:49.4]} 4... g6 {[%clk 0:03:01.8]} 5. Nc3 {[%clk 0:02:48]}
5... Bg7 {[%clk 0:03:02.1]} 6. Be3 {[%clk 0:02:48.1]} 6... Nf6 {[%clk
0:03:02.8]} 7. f3 {[%clk 0:02:46.1]} 7... d5 {[%clk 0:02:59.7]} 8. Nxc6 {[%clk
0:02:42.8]} 8... bxc6 {[%clk 0:03:00.6]} 9. exd5 {[%clk 0:02:41.3]} 9... Nxd5
{[%clk 0:02:58.7]} 10. Nxd5 {[%clk 0:02:41.5]} 10... Qxd5 {[%clk 0:02:58.3]} 11.
Qxd5 {[%clk 0:02:41.5]} 11... cxd5 {[%clk 0:02:59.2]} 12. Bb5+ {[%clk
0:02:41.7]} 12... Bd7 {[%clk 0:02:58.7]} 13. Bxd7+ {[%clk 0:02:42.4]} 13... Kxd7
{[%clk 0:02:59.6]} 14. O-O-O {[%clk 0:02:42.3]} 14... e6 {[%clk 0:02:59]} 15.
Bd4 {[%clk 0:02:40.3]} 15... Bh6+ {[%clk 0:02:52.4]} 16. Kb1 {[%clk 0:02:39.3]}
16... Rhc8 {[%clk 0:02:53.1]} 17. Rhe1 {[%clk 0:02:32.9]} 17... a5 {[%clk
0:02:53]} 18. h4 {[%clk 0:02:17.8]} 18... a4 {[%clk 0:02:52.5]} 19. g4 {[%clk
0:02:17.4]} 19... Bf8 {[%clk 0:02:51.7]} 20. f4 {[%clk 0:02:15.5]} 20... Rab8
{[%clk 0:02:50.5]} 21. f5 {[%clk 0:02:10.6]} 21... a3 {[%clk 0:02:43.1]} 22. b3
{[%clk 0:02:09.5]} 22... Bb4 {[%clk 0:02:36.9]} 23. Rf1 {[%clk 0:01:58.4]} 23...
Rf8 {[%clk 0:01:58.4]} 24. Bg7 {[%clk 0:01:49.2]} 24... Rfe8 {[%clk 0:01:48.8]}
25. fxg6 {[%clk 0:01:02.3]} 25... fxg6 {[%clk 0:01:48.1]} 26. Rf7+ {[%clk
0:01:01.4]} 26... Re7 {[%clk 0:01:48.5]} 27. Rdf1 {[%clk 0:00:57.3]} 27... Rc8
{[%clk 0:01:39.7]} 28. R7f3 {[%clk 0:00:21.9]} 28... Bd6 {[%clk 0:00:25.8]} 29.
Bf8 {[%clk 0:00:17.5]} 29... Ree8 {[%clk 0:00:26.2]} 30. Rf7+ {[%clk 0:00:16.6]}
30... Kc6 {[%clk 0:00:23.7]} 31. Bxd6 {[%clk 0:00:15.2]} 31... Kxd6 {[%clk
0:00:24.6]} 32. Rxh7 {[%clk 0:00:15.5]} 32... Rf8 {[%clk 0:00:23.5]} 33. Rhf7
{[%clk 0:00:14.3]} 33... Rxf7 {[%clk 0:00:23.2]} 34. Rxf7 {[%clk 0:00:15.2]}
34... Rh8 {[%clk 0:00:23.1]} 35. Ra7 {[%clk 0:00:12.4]} 35... Rxh4 {[%clk
0:00:22.5]} 36. Rxa3 {[%clk 0:00:13.1]} 36... Rxg4 {[%clk 0:00:23]} 37. Ra6+
{[%clk 0:00:13.4]} 37... Ke5 {[%clk 0:00:22.8]} 38. a4 {[%clk 0:00:13.8]} 38...
Rg1+ {[%clk 0:00:19.9]} 39. Kb2 {[%clk 0:00:13.7]} 39... g5 {[%clk 0:00:20.4]}
40. Ra8 {[%clk 0:00:13.6]} 40... g4 {[%clk 0:00:21.1]} 41. a5 {[%clk 0:00:13.8]}
41... g3 {[%clk 0:00:21.5]} 42. Rg8 {[%clk 0:00:14.4]} 42... g2 {[%clk
0:00:21.8]} 43. a6 {[%clk 0:00:14.9]} 43... Rf1 {[%clk 0:00:09.4]} 44. a7 {[%clk
0:00:12]} 44... g1=Q {[%clk 0:00:09.1]} 45. Rxg1 {[%clk 0:00:11.6]} 45... Rxg1
{[%clk 0:00:10]} 46. a8=Q {[%clk 0:00:12.1]} 46... Ke4 {[%clk 0:00:09.2]} 47.
Qa4+ {[%clk 0:00:11.4]} 47... d4 {[%clk 0:00:08.8]} 48. Qc6+ {[%clk 0:00:10.9]}
48... Kf4 {[%clk 0:00:07.4]} 49. Qxe6 {[%clk 0:00:10.7]} 49... Rf1 {[%clk
0:00:06.4]} 50. Qf7+ {[%clk 0:00:10.3]} 50... Ke3 {[%clk 0:00:06.4]} 51. Qxf1
{[%clk 0:00:10.8]} 1-0

[Event "Early-Titled-Tuesday-Blitz-November-28-2023"]
[Site "Chess.com"]
[Date "2023.11.28"]
[Round "10"]
[White "SmirnovTimofey2000"]
[Black "missponyo10"]
[Result "0-1"]
[WhiteElo "2076"]
[BlackElo "2201"]
[TimeControl "180+1"]
[EndTime "10:02:29 PST"]
[Termination "missponyo10 won on time"]

1. d4 {[%clk 0:03:00.9]} 1... d5 {[%clk 0:02:59.7]} 2. Bf4 {[%clk 0:02:59.8]}
2... c6 {[%clk 0:02:59.7]} 3. c3 {[%clk 0:02:59.5]} 3... Nf6 {[%clk 0:03:00.2]}
4. e3 {[%clk 0:02:59.7]} 4... e6 {[%clk 0:03:00.9]} 5. Nd2 {[%clk 0:02:59.1]}
5... Nbd7 {[%clk 0:03:01.8]} 6. Ngf3 {[%clk 0:02:58.5]} 6... Be7 {[%clk
0:03:01.4]} 7. h3 {[%clk 0:02:57.3]} 7... O-O {[%clk 0:03:01.9]} 8. Bd3 {[%clk
0:02:57.1]} 8... Re8 {[%clk 0:03:02.1]} 9. Ne5 {[%clk 0:02:57]} 9... Nxe5 {[%clk
0:02:57.2]} 10. Bxe5 {[%clk 0:02:56.6]} 10... Bd6 {[%clk 0:02:55.7]} 11. Nf3
{[%clk 0:02:50.5]} 11... Nd7 {[%clk 0:02:53.9]} 12. Bxd6 {[%clk 0:02:50.2]}
12... Qf6 {[%clk 0:02:52.4]} 13. Be5 {[%clk 0:02:47.3]} 13... Nxe5 {[%clk
0:02:51.6]} 14. Nxe5 {[%clk 0:02:46.3]} 14... b5 {[%clk 0:02:50.2]} 15. Nxc6
{[%clk 0:02:36.3]} 15... a6 {[%clk 0:02:49]} 16. O-O {[%clk 0:02:34.5]} 16...
Qh6 {[%clk 0:02:45.9]} 17. Ne5 {[%clk 0:02:33.1]} 17... f6 {[%clk 0:02:45.9]}
18. Ng4 {[%clk 0:02:29.9]} 18... Qg5 {[%clk 0:02:42]} 19. f4 {[%clk 0:02:16.8]}
19... Qh4 {[%clk 0:02:39.6]} 20. Qe1 {[%clk 0:02:14.3]} 20... Qh5 {[%clk
0:02:34]} 21. Qe2 {[%clk 0:02:12.1]} 21... Kh8 {[%clk 0:02:33]} 22. Nh2 {[%clk
0:01:57.4]} 22... Qf7 {[%clk 0:02:30.9]} 23. Qg4 {[%clk 0:01:51.4]} 23... e5
{[%clk 0:02:29.1]} 24. Qh4 {[%clk 0:01:48.6]} 24... e4 {[%clk 0:02:29]} 25. Be2
{[%clk 0:01:48.1]} 25... Rg8 {[%clk 0:02:17.7]} 26. Bg4 {[%clk 0:01:43.1]} 26...
f5 {[%clk 0:02:17]} 27. Be2 {[%clk 0:01:42.5]} 27... h6 {[%clk 0:02:12.5]} 28.
Kh1 {[%clk 0:01:38.9]} 28... Kh7 {[%clk 0:02:12.1]} 29. g4 {[%clk 0:01:37.1]}
29... g6 {[%clk 0:02:05.5]} 30. gxf5 {[%clk 0:01:32.8]} 30... gxf5 {[%clk
0:02:04.4]} 31. Rg1 {[%clk 0:01:25.1]} 31... Be6 {[%clk 0:02:02.4]} 32. Bh5
{[%clk 0:01:22.4]} 32... Qd7 {[%clk 0:01:59.7]} 33. Qf6 {[%clk 0:01:13.3]} 33...
Rg7 {[%clk 0:01:37.2]} 34. Rxg7+ {[%clk 0:01:00.3]} 34... Qxg7 {[%clk 0:01:38]}
35. Qxg7+ {[%clk 0:00:57.7]} 35... Kxg7 {[%clk 0:01:37.7]} 36. Rg1+ {[%clk
0:00:58.3]} 36... Kf6 {[%clk 0:01:37.4]} 37. Rg6+ {[%clk 0:00:56.9]} 37... Ke7
{[%clk 0:01:37.3]} 38. Rxh6 {[%clk 0:00:52.2]} 38... Rc8 {[%clk 0:01:37.2]} 39.
a3 {[%clk 0:00:42.7]} 39... a5 {[%clk 0:01:34]} 40. Be2 {[%clk 0:00:37.2]} 40...
b4 {[%clk 0:01:33]} 41. axb4 {[%clk 0:00:30.7]} 41... axb4 {[%clk 0:01:33.9]}
42. Rh7+ {[%clk 0:00:25]} 42... Kd6 {[%clk 0:01:33.6]} 43. Ra7 {[%clk
0:00:20.5]} 43... bxc3 {[%clk 0:01:32.7]} 44. bxc3 {[%clk 0:00:18.2]} 44... Rxc3
{[%clk 0:01:33.1]} 45. Kg2 {[%clk 0:00:18.7]} 45... Rc2 {[%clk 0:01:31.5]} 46.
Kf2 {[%clk 0:00:18.7]} 46... Rb2 {[%clk 0:01:29.7]} 47. Ra6+ {[%clk 0:00:17.3]}
47... Ke7 {[%clk 0:01:29.7]} 48. h4 {[%clk 0:00:17.1]} 48... Bd7 {[%clk
0:01:29.8]} 49. Ra7 {[%clk 0:00:14.7]} 49... Kd6 {[%clk 0:01:29.3]} 50. h5
{[%clk 0:00:13.7]} 50... Bb5 {[%clk 0:01:28.5]} 51. Kg3 {[%clk 0:00:07]} 51...
Rxe2 {[%clk 0:01:27.9]} 52. h6 {[%clk 0:00:06.4]} 52... Rxe3+ {[%clk 0:01:23.8]}
53. Kh4 {[%clk 0:00:05.2]} 53... Re2 {[%clk 0:01:20.9]} 54. h7 {[%clk
0:00:02.4]} 54... Rxh2+ {[%clk 0:01:20.7]} 55. Kg3 {[%clk 0:00:03.3]} 55... Rh5
{[%clk 0:01:17.1]} 56. Kf2 {[%clk 0:00:02]} 56... Bd7 {[%clk 0:01:15.4]} 57. Ke3
{[%clk 0:00:01.4]} 57... Rxh7 {[%clk 0:01:14.8]} 58. Ra6+ {[%clk 0:00:01.1]}
58... Ke7 {[%clk 0:01:14.1]} 59. Ra5 {[%clk 0:00:01]} 59... Kd6 {[%clk
0:01:12.3]} 0-1

[Event "Early-Titled-Tuesday-Blitz-November-28-2023"]
[Site "Chess.com"]
[Date "2023.11.28"]
[Round "10"]
[White "elchacal664"]
[Black "verrbaa"]
[Result "1-0"]
[WhiteElo "2355"]
[BlackElo "2463"]
[TimeControl "180+1"]
[EndTime "10:02:31 PST"]
[Termination "elchacal664 won on time"]

1. c4 {[%clk 0:01:19.5]} 1... Nf6 {[%clk 0:02:59]} 2. e3 {[%clk 0:01:20.4]} 2...
g6 {[%clk 0:02:56.5]} 3. b3 {[%clk 0:01:21.3]} 3... Bg7 {[%clk 0:02:56.3]} 4.
Bb2 {[%clk 0:01:21.6]} 4... O-O {[%clk 0:02:55.7]} 5. Nf3 {[%clk 0:01:22.5]}
5... c5 {[%clk 0:02:50.9]} 6. Be2 {[%clk 0:01:21.3]} 6... Nc6 {[%clk 0:02:50.3]}
7. O-O {[%clk 0:01:21.5]} 7... e6 {[%clk 0:02:14.5]} 8. d3 {[%clk 0:01:17.8]}
8... d5 {[%clk 0:02:13.6]} 9. cxd5 {[%clk 0:01:17.1]} 9... exd5 {[%clk
0:02:10.2]} 10. Nbd2 {[%clk 0:01:16.3]} 10... b6 {[%clk 0:02:04]} 11. a3 {[%clk
0:01:16.1]} 11... Bb7 {[%clk 0:02:00.1]} 12. Rc1 {[%clk 0:01:14.8]} 12... Rc8
{[%clk 0:01:59.3]} 13. Rc2 {[%clk 0:01:14.7]} 13... Re8 {[%clk 0:01:54.4]} 14.
Re1 {[%clk 0:01:14.7]} 14... Qd6 {[%clk 0:01:50.1]} 15. Bf1 {[%clk 0:01:12.5]}
15... Nh5 {[%clk 0:01:44.3]} 16. Qa1 {[%clk 0:01:03.9]} 16... Bxb2 {[%clk
0:01:43.2]} 17. Qxb2 {[%clk 0:01:04.8]} 17... a5 {[%clk 0:01:21.9]} 18. Rec1
{[%clk 0:01:03.4]} 18... d4 {[%clk 0:01:02.5]} 19. e4 {[%clk 0:01:02.9]} 19...
Ng7 {[%clk 0:00:54.2]} 20. g3 {[%clk 0:00:49.5]} 20... Re7 {[%clk 0:00:37]} 21.
Re1 {[%clk 0:00:48.5]} 21... Rce8 {[%clk 0:00:36.6]} 22. Rcc1 {[%clk 0:00:47.3]}
22... f5 {[%clk 0:00:33.3]} 23. exf5 {[%clk 0:00:42.1]} 23... Rxe1 {[%clk
0:00:32.8]} 24. Nxe1 {[%clk 0:00:39.9]} 24... gxf5 {[%clk 0:00:30]} 25. Bg2
{[%clk 0:00:37]} 25... Nd8 {[%clk 0:00:13]} 26. Bxb7 {[%clk 0:00:35.6]} 26...
Nxb7 {[%clk 0:00:13.9]} 27. b4 {[%clk 0:00:35.7]} 27... Re2 {[%clk 0:00:07.3]}
28. bxa5 {[%clk 0:00:24.1]} 28... Nxa5 {[%clk 0:00:07.6]} 29. Nef3 {[%clk
0:00:18.7]} 29... Qe6 {[%clk 0:00:07.4]} 30. Qc2 {[%clk 0:00:18.2]} 30... h6
{[%clk 0:00:05.6]} 31. Qa4 {[%clk 0:00:18]} 31... Kh7 {[%clk 0:00:05]} 32. Rf1
{[%clk 0:00:16.4]} 32... Nc6 {[%clk 0:00:04.2]} 33. Nc4 {[%clk 0:00:14.4]} 33...
Ne7 {[%clk 0:00:03.1]} 34. Qb5 {[%clk 0:00:14.1]} 34... Qd5 {[%clk 0:00:03.3]}
35. Nfd2 {[%clk 0:00:12.3]} 35... Qe6 {[%clk 0:00:02.2]} 36. Qxb6 {[%clk
0:00:12]} 36... Qd5 {[%clk 0:00:02.1]} 37. Qc7 {[%clk 0:00:10.9]} 37... Ng6
{[%clk 0:00:02.1]} 38. a4 {[%clk 0:00:09.2]} 38... f4 {[%clk 0:00:01.7]} 39. a5
{[%clk 0:00:08.9]} 39... f3 {[%clk 0:00:01.9]} 40. a6 {[%clk 0:00:06.2]} 40...
Re8 {[%clk 0:00:01.4]} 41. Qb7 {[%clk 0:00:06.2]} 41... Qf5 {[%clk 0:00:01.5]}
42. Qxf3 {[%clk 0:00:06.4]} 42... Qe6 {[%clk 0:00:01.2]} 43. Ne4 {[%clk
0:00:06.2]} 43... Qxa6 {[%clk 0:00:01.2]} 44. Nf6+ {[%clk 0:00:06.5]} 44... Kh8
{[%clk 0:00:01.5]} 45. Nxe8 {[%clk 0:00:07.4]} 45... Nxe8 {[%clk 0:00:01.9]} 46.
Qe4 {[%clk 0:00:07.1]} 1-0